Workbook

Sheet 生活保護
A1: ３．福祉
A2: 生活保護など
B4: 被保護人員 | C4: 保護率‰ | D4: 民生委員 | F4: 地区担当員（ケースワーカー）数 | I4: 被保護人員 | J4: 保護率‰ | K4: 民生委員 | M4: 地区担当員（ケースワーカー）数
B5: 2017年度 | C5: 2017年度 | D5: 定数 | E5: 実数 | I5: 2017年度 | J5: 2017年度 | K5: 定数 | L5: 実数
A6: 千代田区 | B6: 631 | C6: 10.4 | D6: 52 | E6: 50 | F6: 7 | H6: 八王子市 | I6: 9,836 | J6: 17.0 | K6: 451 | L6: 445 | M6: 66
A7: 中央区 | B7: 1,124 | C7: 7.3 | D7: 111 | E7: 103 | F7: 13 | H7: 立川市 | I7: 5,027 | J7: 28.0 | K7: 157 | L7: 156 | M7: 38
A8: 港 区 | B8: 2,268 | C8: 9.0 | D8: 168 | E8: 148 | F8: 26 | H8: 武蔵野市 | I8: 1,856 | J8: 12.7 | K8: 109 | L8: 98 | M8: 21
A9: 新宿区 | B9: 10,319 | C9: 30.1 | D9: 303 | E9: 298 | F9: 96 | H9: 三鷹市 | I9: 3,303 | J9: 17.3 | K9: 127 | L9: 112 | M9: 28
A10: 文京区 | B10: 2,352 | C10: 10.4 | D10: 146 | E10: 145 | F10: 22 | H10: 青梅市 | I10: 2,874 | J10: 21.2 | K10: 148 | L10: 147 | M10: 18
A11: 台東区 | B11: 8,735 | C11: 43.1 | D11: 213 | E11: 205 | F11: 77 | H11: 府中市 | I11: 5,330 | J11: 20.3 | K11: 173 | L11: 165 | M11: 32
A12: 墨田区 | B12: 8,135 | C12: 30.9 | D12: 209 | E12: 187 | F12: 71 | H12: 昭島市 | I12: 2,357 | J12: 21.1 | K12: 85 | L12: 84 | M12: 17
A13: 江東区 | B13: 9,885 | C13: 19.4 | D13: 325 | E13: 289 | F13: 80 | H13: 調布市 | I13: 3,041 | J13: 13.0 | K13: 163 | L13: 155 | M13: 23
A14: 品川区 | B14: 5,681 | C14: 14.3 | D14: 325 | E14: 304 | F14: 44 | H14: 町田市 | I14: 7,834 | J14: 18.0 | K14: 254 | L14: 235 | M14: 38
A15: 目黒区 | B15: 2,901 | C15: 10.3 | D15: 231 | E15: 224 | F15: 28 | H15: 小金井市 | I15: 1,704 | J15: 13.8 | K15: 84 | L15: 72 | M15: 13
A16: 大田区 | B16: 16,650 | C16: 22.9 | D16: 504 | E16: 493 | F16: 150 | H16: 小平市 | I16: 3,290 | J16: 17.0 | K16: 138 | L16: 122 | M16: 22
A17: 世田谷区 | B17: 10,230 | C17: 11.1 | D17: 627 | E17: 607 | F17: 104 | H17: 日野市 | I17: 2,498 | J17: 13.3 | K17: 134 | L17: 131 | M17: 19
A18: 渋谷区 | B18: 3,238 | C18: 14.1 | D18: 199 | E18: 194 | F18: 35 | H18: 東村山市 | I18: 3,403 | J18: 22.7 | K18: 119 | L18: 102 | M18: 20
A19: 中野区 | B19: 7,599 | C19: 22.7 | D19: 306 | E19: 294 | F19: 54 | H19: 国分寺市 | I19: 1,163 | J19: 9.3 | K19: 79 | L19: 76 | M19: 10
A20: 杉並区 | B20: 7,602 | C20: 13.2 | D20: 432 | E20: 400 | F20: 81 | H20: 国立市 | I20: 1,128 | J20: 15.1 | K20: 54 | L20: 52 | M20: 10
A21: 豊島区 | B21: 6,965 | C21: 23.4 | D21: 252 | E21: 234 | F21: 75 | H21: 福生市 | I21: 1,162 | J21: 19.9 | K21: 52 | L21: 48 | M21: 9
A22: 北 区 | B22: 9,525 | C22: 27.3 | D22: 324 | E22: 312 | F22: 94 | H22: 狛江市 | I22: 1,127 | J22: 1.7 | K22: 58 | L22: 48 | M22: 11
A23: 荒川区 | B23: 6,477 | C23: 30.0 | D23: 215 | E23: 215 | F23: 53 | H23: 東大和市 | I23: 1,918 | J23: 22.6 | K23: 60 | L23: 56 | M23: 13
A24: 板橋区 | B24: 18,445 | C24: 32.2 | D24: 519 | E24: 511 | F24: 173 | H24: 清瀬市 | I24: 2,279 | J24: 30.2 | K24: 55 | L24: 51 | M24: 16
A25: 練馬区 | B25: 17,054 | C25: 23.3 | D25: 571 | E25: 567 | F25: 129 | H25: 東久留米市 | I25: 2,308 | J25: 19.8 | K25: 80 | L25: 57 | M25: 15
A26: 足立区 | B26: 24,808 | C26: 36.7 | D26: 559 | E26: 541 | F26: 237 | H26: 武蔵村山市 | I26: 1,715 | J26: 24.0 | K26: 62 | L26: 61 | M26: 15
A27: 葛飾区 | B27: 13,805 | C27: 30.7 | D27: 404 | E27: 382 | F27: 112 | H27: 多摩市 | I27: 2,571 | J27: 17.4 | K27: 112 | L27: 99 | M27: 23
A28: 江戸川区 | B28: 20,960 | C28: 30.3 | D28: 435 | E28: 430 | F28: 176 | H28: 稲城市 | I28: 1,195 | J28: 13.3 | K28: 62 | L28: 60 | M28: 10
A29: 区部計 | B29: 215,387 | C29: 22.8 | D29: =SUM(D6:D28) -> 7,430 | E29: =SUM(E6:E28) -> 7,133 | F29: =SUM(F6:F28) -> 1,937 | H29: 羽村市 | I29: 780 | J29: 14.1 | K29: 52 | L29: 51 | M29: 7
H30: あきる野市 | I30: 976 | J30: 12.1 | K30: 70 | L30: 70 | M30: 8
H31: 西東京市 | I31: 4,072 | J31: 20.2 | K31: 147 | L31: 138 | M31: 32
A32: 民生委員定数・実数、地区担当員数は2016年4月1日現在 | H32: 市部計 | I32: 74,745 | J32: 17.8 | K32: =SUM(K6:K31) -> 3,085 | L32: =SUM(L6:L31) -> 2,891 | M32: =SUM(M6:M31) -> 534
A34: 出所：
A35: 被保護人員・保護率は、東京都福祉保健局『福祉・衛生 統計年報 平成29年度』
A36: 民生委員定数・実数、地区担当員数は『東京都統計年鑑 2016』

Sheet 高齢者福祉
A1: 高齢者福祉
B3: 地域包括支援センター | E3: 認知症高齢者グループホーム | G3: 見守り・安否確認体制の有無 | J3: 地域包括支援センター | M3: 認知症高齢者グループホーム | O3: 見守り・安否確認体制の有無
B4: 施設数 | C4: サブセンター・ブランチ | D4: 在宅介護支援センター | E4: 定員 | F4: 整備率 | J4: 施設数 | K4: サブセンター・ブランチ | L4: 在宅介護支援センター | M4: 定員 | N4: 整備率
A5: 千代田区 | B5: 2 | E5: 36 | F5: 0.33% | G5: 有 | I5: 八王子市 | J5: 17 | M5: 386 | N5: 0.26% | O5: 有
A6: 中央区 | B6: 4 | E6: 63 | F6: 0.25% | G6: 有 | I6: 立川市 | J6: 6 | L6: 3 | M6: 135 | N6: 0.30% | O6: 有
A7: 港 区 | B7: 5 | E7: 81 | F7: 0.18% | G7: 有 | I7: 武蔵野市 | J7: 7 | M7: 36 | N7: 0.11% | O7: 有
A8: 新宿区 | B8: 10 | E8: 179 | F8: 0.26% | G8: 有 | I8: 三鷹市 | J8: 7 | M8: 152 | N8: 0.37% | O8: 有
A9: 文京区 | B9: 8 | E9: 122 | F9: 0.28% | G9: 有 | I9: 青梅市 | J9: 3 | M9: 81 | N9: 0.20% | O9: 有
A10: 台東区 | B10: 7 | E10: 144 | F10: 0.31% | G10: 有 | I10: 府中市 | J10: 11 | M10: 198 | N10: 0.35% | O10: 有
A11: 墨田区 | B11: 8 | E11: 288 | F11: 0.47% | G11: 有 | I11: 昭島市 | J11: 4 | M11: 51 | N11: 0.17% | O11: 有
A12: 江東区 | B12: 21 | E12: 324 | F12: 0.29% | G12: 有 | I12: 調布市 | J12: 10 | M12: 171 | N12: 0.34% | O12: 有
A13: 品川区 | B13: 1 | D13: 20 | E13: 240 | F13: 0.29% | G13: 有 | I13: 町田市 | J13: 12 | K13: 12 | M13: 378 | N13: 0.33% | O13: 有
A14: 目黒区 | B14: 5 | E14: 207 | F14: 0.37% | G14: 有 | I14: 小金井市 | J14: 4 | M14: 83 | N14: 0.32% | O14: 有
A15: 大田区 | B15: 21 | E15: 732 | F15: 0.44% | G15: 有 | I15: 小平市 | J15: 5 | K15: 4 | M15: 153 | N15: 0.34% | O15: 有
A16: 世田谷区 | B16: 27 | C16: 1 | E16: 801 | F16: 0.44% | G16: 有 | I16: 日野市 | J16: 9 | M16: 99 | N16: 0.21% | O16: 有
A17: 渋谷区 | B17: 11 | E17: 83 | F17: 0.19% | G17: 有 | I17: 東村山市 | J17: 5 | M17: 153 | N17: 0.38% | O17: 有
A18: 中野区 | B18: 8 | E18: 294 | F18: 0.43% | G18: 有 | I18: 国分寺市 | J18: 7 | M18: 102 | N18: 0.38% | O18: 有
A19: 杉並区 | B19: 20 | E19: 537 | F19: 0.45% | G19: 有 | I19: 国立市 | J19: 1 | K19: 3 | M19: 69 | N19: 0.40% | O19: 有
A20: 豊島区 | B20: 8 | E20: 149 | F20: 0.25% | G20: 有 | I20: 福生市 | J20: 2 | L20: 3 | M20: 9 | N20: 0.06% | O20: 有
A21: 北 区 | B21: 17 | E21: 276 | F21: 0.31% | G21: 有 | I21: 狛江市 | J21: 3 | M21: 63 | N21: 0.31%
A22: 荒川区 | B22: 8 | E22: 268 | F22: 0.53% | G22: 有 | I22: 東大和市 | J22: 3 | M22: 54 | N22: 0.23% | O22: 有
A23: 板橋区 | B23: 18 | E23: 458 | F23: 0.35% | G23: 有 | I23: 清瀬市 | J23: 4 | M23: 81 | N23: 0.38% | O23: 有
A24: 練馬区 | B24: 25 | E24: 563 | F24: 0.35% | G24: 有 | I24: 東久留米市 | J24: 3 | K24: 2 | L24: 1 | M24: 90 | N24: 0.27% | O24: 有
A25: 足立区 | B25: 25 | E25: 623 | F25: 0.36% | G25: 有 | I25: 武蔵村山市 | J25: 4 | M25: 45 | N25: 0.24% | O25: 有
A26: 葛飾区 | B26: 7 | C26: 6 | E26: 558 | F26: 0.49% | G26: 有 | I26: 多摩市 | J26: 6 | M26: 108 | N26: 0.26% | O26: 有
A27: 江戸川区 | B27: 19 | C27: 8 | E27: 654 | F27: 0.44% | G27: 有 | I27: 稲城市 | J27: 4 | M27: 60 | N27: 0.31% | O27: 有
I28: 羽村市 | J28: 3 | M28: 27 | N28: 0.19% | O28: 有
A29: 地域包括支援センターは調査時（2017年8月）現在 | I29: あきる野市 | J29: 2 | M29: 45 | N29: 0.19% | O29: 有
A30: 認知症高齢者グループホームは2018年4月1日現在 | I30: 西東京市 | J30: 8 | M30: 179 | N30: 0.37% | O30: 有
A31: 見守り・安否確認体制の有無は、ここでは、「高齢者見守りネットワーク」の有無としている（2017年9月30日現在）。
A33: 出所：
A34: 地域包括支援センター、認知症高齢者グループホームは東京都福祉保健局ホームページ
A35: 見守り・安否確認体制の有無については『平成29年度区市町村における高齢者福祉施策一覧』

Sheet 子どもの福祉（特別区）
A1: 子どもの福祉（特別区）
B3: 保育所 | E3: 認証保育所 | G3: 病児・病後児保育 | H3: 幼稚園 | I3: 認定こども園 | J3: 学童クラブ | L3: 児童館 | M3: 保育所待機児童数 | N3: 児童手当等加算
B4: 施設数 | C4: 定員（人） | D4: 入所児童数（人） | E4: 施設数 | F4: 定員（人） | G4: 箇所数 | H4: 施設数 | I4: 施設数 | J4: 施設数 | K4: 定員（人） | L4: 施設数 | M4: 人 | N4: *
A5: 千代田区 | B5: 15 | C5: 1,302 | D5: 1,236 | E5: 10 | F5: 316 | G5: 0 | H5: 12 | I5: 1 | J5: 17 | K5: 879 | L5: 4 | M5: 0 | N5: ◎
A6: 中央区 | B6: 52 | C6: 4,606 | D6: 4,206 | E6: 14 | F6: 564 | G6: 4 | H6: 16 | I6: 3 | J6: 13 | K6: 564 | L6: 8 | M6: 188 | N6: ◎
A7: 港 区 | B7: 56 | C7: 5,157 | D7: 4,901 | E7: 20 | F7: 738 | G7: 6 | H7: 30 | I7: 1 | J7: 32 | K7: 2,338 | L7: 11 | M7: 89 | N7: ○
A8: 新宿区 | B8: 62 | C8: 6,482 | D8: 5,712 | E8: 17 | F8: 610 | G8: 5 | H8: 30 | I8: 12 | J8: 30 | K8: 1,604 | L8: 20 | M8: 25 | N8: ◎
A9: 文京区 | B9: 61 | C9: 4,531 | D9: 4,361 | E9: 3 | F9: 98 | G9: 2 | H9: 27 | I9: 1 | J9: 34 | K9: 1,528 | L9: 16 | M9: 100
A10: 台東区 | B10: 35 | C10: 2,943 | D10: 2,781 | E10: 9 | F10: 272 | G10: 1 | H10: 19 | I10: 4 | J10: 23 | K10: 1,090 | L10: 8 | M10: 183 | N10: ◎
A11: 墨田区 | B11: 65 | C11: 5,792 | D11: 5,333 | E11: 7 | F11: 225 | G11: 2 | H11: 16 | I11: 2 | J11: 41 | K11: 1,947 | L11: 16 | M11: 189 | N11: ○
A12: 江東区 | B12: 117 | C12: 11,874 | D12: 11,486 | E12: 50 | F12: 1,635 | G12: 4 | H12: 32 | I12: 3 | J12: 61 | K12: 3,564 | L12: 19 | M12: 76 | N12: ○
A13: 品川区 | B13: 111 | C13: 9,925 | D13: 9,310 | E13: 27 | F13: 954 | G13: 5 | H13: 28 | I13: 7 | J13: 37 | K13: 1,765 | L13: 24 | M13: 19 | N13: ○
A14: 目黒区 | B14: 55 | C14: 4,729 | D14: 4,384 | E14: 13 | F14: 516 | G14: 3 | H14: 24 | I14: 2 | J14: 26 | K14: 1,470 | L14: 14 | M14: 330
A15: 大田区 | B15: 138 | C15: 12,614 | D15: 12,101 | E15: 49 | F15: 1,861 | G15: 8 | H15: 48 | I15: 0 | J15: 89 | K15: 4,590 | L15: 48 | M15: 250 | N15: ○
A16: 世田谷区 | B16: 175 | C16: 15,712 | D16: 15,196 | E16: 49 | F16: 1,660 | G16: 11 | H16: 64 | I16: 4 | J16: 64 | K16: 5,439 | L16: 25 | M16: 486 | N16: ○
A17: 渋谷区 | B17: 53 | C17: 4,954 | D17: 4,360 | E17: 9 | F17: 252 | G17: 1 | H17: 21 | I17: 10 | J17: 18 | K17: 2,461 | L17: 2 | M17: 151 | N17: ○
A18: 中野区 | B18: 57 | C18: 5,045 | D18: 4,957 | E18: 15 | F18: 471 | G18: 3 | H18: 22 | I18: 2 | J18: 35 | K18: 1,701 | L18: 20 | M18: 171
A19: 杉並区 | B19: 118 | C19: 10,640 | D19: 9,615 | E19: 24 | F19: 808 | G19: 3 | H19: 45 | I19: 0 | J19: 51 | K19: 4,098 | L19: 42 | M19: 0 | N19: ○
A20: 豊島区 | B20: 73 | C20: 5,574 | D20: 5,231 | E20: 5 | F20: 170 | G20: 4 | H20: 20 | I20: 1 | J20: 22 | K20: 1,663 | L20: 2 | M20: 0 | N20: ◎
A21: 北 区 | B21: 83 | C21: 8,118 | D21: 7,525 | E21: 7 | F21: 198 | G21: 2 | H21: 36 | I21: 1 | J21: 60 | K21: 2,368 | L21: 23 | M21: 42 | N21: ◇
A22: 荒川区 | B22: 50 | C22: 5,253 | D22: 5,127 | E22: 11 | F22: 247 | G22: 3 | H22: 14 | I22: 1 | J22: 25 | K22: 1,212 | L22: 16 | M22: 80 | N22: ◎
A23: 板橋区 | B23: 122 | C23: 11,148 | D23: 10,955 | E23: 20 | F23: 729 | G23: 4 | H23: 35 | I23: 2 | J23: 52 | K23: 4,101 | L23: 26 | M23: 185 | N23: ○
A24: 練馬区 | B24: 145 | C24: 13,508 | D24: 13,395 | E24: 20 | F24: 595 | G24: 7 | H24: 45 | I24: 3 | J24: 97 | K24: 4,634 | L24: 25 | M24: 79 | N24: ◎
A25: 足立区 | B25: 122 | C25: 11,678 | D25: 10,967 | E25: 37 | F25: 1,119 | G25: 2 | H25: 53 | I25: 5 | J25: 98 | K25: 4,558 | L25: 50 | M25: 205 | N25: ○
A26: 葛飾区 | B26: 104 | C26: 10,369 | D26: 9,823 | E26: 11 | F26: 351 | G26: 10 | H26: 29 | I26: 1 | J26: 85 | K26: 4,457 | L26: 28 | M26: 64 | N26: ○
A27: 江戸川区 | B27: 111 | C27: 12,098 | D27: 11,357 | E27: 21 | F27: 668 | G27: 5 | H27: 41 | I27: 2 | J27: 3 | K27: 72 | L27: 6 | M27: 440 | N27: ○
A29: 保育所は2018年4月1日現在 | G29: 出所：
A30: 認証保育所数は2018年10月1日現在 | G30: 保育所、学童クラブ、児童館は『福祉・衛生統計年報 平成29年度』
A31: 病後児保育は2018年7月1日現在 | G31: 認証保育所数、病後児保育、認定こども園は東京都福祉保健局ホームページ
A32: 幼稚園数は2017年5月1日現在 | G32: 幼稚園数は『平成28年度学校基本調査』
A33: 認定こども園は2018年10月１日現在 | G33: 保育所待機児童数は2018年7月東京都報道発表資料
A34: 学童クラブ、児童館は2016年度末現在 | G34: 児童手当加算については『平成28年度 区市町村における子供家庭支援事業の実施状況』
A35: 保育所待機児童数は2018年4月1日現在
A36: 児童手当等加算は2016年度
A39: *児童手当加算等は独自の手当や金品の支給を行っているものを◎、貸付制度を独自に行っているものを○、社協等が実施しているものを◇とした。

Sheet 子どもの福祉（多摩地域）
A1: 子どもの福祉（多摩地域）
B3: 保育所 | E3: 認証保育所 | G3: 病児・病後児保育 | H3: 幼稚園 | I3: 認定こども園 | J3: 学童クラブ | L3: 児童館 | M3: 保育所待機児童数 | N3: 児童手当等加算
B4: 施設数 | C4: 定員（人） | D4: 入所児童数（人） | E4: 施設数 | F4: 定員（人） | G4: 箇所数 | H4: 施設数 | I4: 施設数 | J4: 施設数 | K4: 定員（人） | L4: 施設数 | M4: 人 | N4: *
A5: 八王子市 | B5: 99 | C5: 10,393 | D5: 10,411 | E5: 6 | F5: 250 | G5: 4 | H5: 31 | I5: 5 | J5: 117 | K5: 5,751 | L5: 12 | M5: 56
A6: 立川市 | B6: 36 | C6: 3,927 | D6: 3,725 | E6: 5 | F6: 213 | G6: 2 | H6: 12 | I6: 1 | J6: 32 | K6: 1,597 | L6: 9 | M6: 48
A7: 武蔵野市 | B7: 26 | C7: 2,299 | D7: 2,248 | E7: 19 | F7: 689 | G7: 2 | H7: 12 | I7: 1 | J7: 15 | K7: 980 | L7: 1 | M7: 53 | N7: ◇
A8: 三鷹市 | B8: 39 | C8: 3,483 | D8: 3,354 | E8: 13 | F8: 434 | G8: 2 | H8: 17 | I8: 2 | J8: 27 | K8: 1,488 | L8: 2 | M8: 190 | N8: ◇
A9: 青梅市 | B9: 30 | C9: 3,225 | D9: 3,040 | E9: 1 | F9: 44 | G9: 1 | H9: 6 | I9: 1 | J9: 29 | K9: 1,350 | L9: 0 | M9: 13
A10: 府中市 | B10: 50 | C10: 5,146 | D10: 5,049 | E10: 16 | F10: 552 | G10: 2 | H10: 20 | I10: 0 | J10: 42 | K10: 1,929 | L10: 11 | M10: 248 | N10: ◎
A11: 昭島市 | B11: 22 | C11: 2,662 | D11: 2,691 | E11: 1 | F11: 30 | G11: 2 | H11: 7 | I11: 0 | J11: 21 | K11: 1,098 | L11: 1 | M11: 35
A12: 調布市 | B12: 65 | C12: 5,474 | D12: 5,242 | E12: 13 | F12: 450 | G12: 2 | H12: 15 | I12: 0 | J12: 31 | K12: 1,700 | L12: 12 | M12: 167
A13: 町田市 | B13: 73 | C13: 6,714 | D13: 6,572 | E13: 6 | F13: 244 | G13: 5 | H13: 35 | I13: 8 | J13: 67 | K13: 3,617 | L13: 7 | M13: 146 | N13: ◎
A14: 小金井市 | B14: 24 | C14: 2,276 | D14: 2,093 | E14: 6 | F14: 223 | G14: 1 | H14: 7 | I14: 0 | J14: 18 | K14: 918 | L14: 4 | M14: 88 | N14: ◎
A15: 小平市 | B15: 42 | C15: 3,467 | D15: 3,432 | E15: 10 | F15: 275 | G15: 2 | H15: 15 | I15: 4 | J15: 30 | K15: 1,434 | L15: 3 | M15: 96 | N15: ◎
A16: 日野市 | B16: 35 | C16: 3,614 | D16: 3,528 | E16: 9 | F16: 427 | G16: 3 | H16: 14 | I16: 1 | J16: 38 | K16: 1,772 | L16: 9 | M16: 139
A17: 東村山市 | B17: 21 | C17: 2,161 | D17: 2,318 | E17: 3 | F17: 106 | G17: 1 | H17: 10 | I17: 2 | J17: 25 | K17: 1,524 | L17: 5 | M17: 5
A18: 国分寺市 | B18: 31 | C18: 2,740 | D18: 2,559 | E18: 4 | F18: 135 | G18: 4 | H18: 4 | I18: 0 | J18: 17 | K18: 1,032 | L18: 6 | M18: 202 | N18: ◎
A19: 国立市 | B19: 15 | C19: 1,351 | D19: 1,380 | E19: 1 | F19: 30 | G19: 1 | H19: 9 | I19: 0 | J19: 12 | K19: 596 | L19: 3 | M19: 53 | N19: ◎
A20: 福生市 | B20: 14 | C20: 1,347 | D20: 1,325 | E20: 0 | F20: 0 | G20: 2 | H20: 4 | I20: 1 | J20: 12 | K20: 636 | L20: 3 | M20: 0
A21: 狛江市 | B21: 18 | C21: 1,689 | D21: 1,568 | E21: 5 | F21: 163 | G21: 1 | H21: 3 | I21: 1 | J21: 12 | K21: 563 | L21: 2 | M21: 75
A22: 東大和市 | B22: 16 | C22: 2,011 | D22: 1,919 | E22: 2 | F22: 206 | G22: 1 | H22: 3 | I22: 2 | J22: 11 | K22: 743 | L22: 6 | M22: 24
A23: 清瀬市 | B23: 15 | C23: 1,367 | D23: 1,283 | E23: 1 | F23: 38 | G23: 2 | H23: 7 | I23: 1 | J23: 16 | K23: 631 | L23: 3 | M23: 44 | N23: ○
A24: 東久留米市 | B24: 20 | C24: 2,022 | D24: 2,008 | E24: 2 | F24: 70 | G24: 1 | H24: 8 | I24: 1 | J24: 20 | K24: 1,012 | L24: 4 | M24: 38
A25: 武蔵村山市 | B25: 13 | C25: 1,979 | D25: 1,900 | E25: 1 | F25: 20 | G25: 1 | H25: 4 | I25: 0 | J25: 13 | K25: 703 | L25: 2 | M25: 39
A26: 多摩市 | B26: 20 | C26: 2,593 | D26: 2,485 | E26: 10 | F26: 358 | G26: 2 | H26: 8 | I26: 1 | J26: 25 | K26: 1,459 | L26: 10 | M26: 83
A27: 稲城市 | B27: 15 | C27: 1,867 | D27: 1,873 | E27: 6 | F27: 179 | G27: 2 | H27: 7 | I27: 1 | J27: 15 | K27: 696 | L27: 5 | M27: 54 | N27: ○
A28: 羽村市 | B28: 12 | C28: 1,122 | D28: 1,154 | E28: 3 | F28: 120 | G28: 2 | H28: 7 | I28: 2 | J28: 12 | K28: 630 | L28: 3 | M28: 4 | N28: ◎
A29: あきる野市 | B29: 15 | C29: 1,779 | D29: 1,687 | E29: 2 | F29: 69 | G29: 1 | H29: 6 | I29: 2 | J29: 16 | K29: 923 | L29: 6 | M29: 8 | N29: ◎
A30: 西東京市 | B30: 35 | C30: 3,286 | D30: 3,332 | E30: 12 | F30: 344 | G30: 2 | H30: 13 | I30: 0 | J30: 33 | K30: 1,921 | L30: 11 | M30: 129
A32: 前頁に同じ

Sheet 子ども家庭支援
A1: 子ども家庭支援
B3: 子ども家庭支援センター | C3: ファミリー・サポート事業 | D3: ショートスティ | E3: 母子生活支援施設数 | H3: 子ども家庭支援センター | I3: ファミリー・サポート事業 | J3: ショートスティ | K3: 母子生活支援施設数
B4: 箇所数 | D4: 箇所数 | H4: 箇所数 | J4: 箇所数
A5: 千代田区 | B5: 1 | C5: 有 | D5: 2 | E5: - | G5: 八王子市 | H5: 1 | I5: 有 | J5: 9 | K5: 1
A6: 中央区 | B6: 1 | D6: 2 | E6: - | G6: 立川市 | H6: 1 | J6: 1 | K6: -
A7: 港 区 | B7: 1 | D7: 2 | E7: 1 | G7: 武蔵野市 | H7: 1 | I7: 他機関 | J7: 2 | K7: -
A8: 新宿区 | B8: 5 | D8: 1 | E8: 2 | G8: 三鷹市 | H8: 1 | I8: 有 | J8: 1 | K8: 1
A9: 文京区 | B9: 1 | D9: 2 | E9: - | G9: 青梅市 | H9: 1 | J9: 1 | K9: -
A10: 台東区 | B10: 1 | D10: 2 | E10: 1 | G10: 府中市 | H10: 1 | J10: 3 | K10: 1
A11: 墨田区 | B11: 1 | D11: 11 | E11: 3 | G11: 昭島市 | H11: 1 | J11: 1 | K11: 1
A12: 江東区 | B12: 1 | D12: 1 | E12: 1 | G12: 調布市 | H12: 1 | J12: 2 | K12: 1
A13: 品川区 | B13: 1 | D13: 1 | E13: 1 | G13: 町田市 | H13: 1 | J13: 1 | K13: -
A14: 目黒区 | B14: 1 | D14: 1 | E14: 1 | G14: 小金井市 | H14: 1 | J14: 1 | K14: -
A15: 大田区 | B15: 4 | D15: 2 | E15: 2 | G15: 小平市 | H15: 1 | J15: 1 | K15: -
A16: 世田谷区 | B16: 5 | D16: 2 | E16: 3 | G16: 日野市 | H16: 1 | J16: 1 | K16: -
A17: 渋谷区 | B17: 1 | D17: 4 | E17: 1 | G17: 東村山市 | H17: 1 | J17: 1 | K17: -
A18: 中野区 | B18: 1 | D18: 2 | E18: 1 | G18: 国分寺市 | H18: 1 | J18: 1 | K18: -
A19: 杉並区 | B19: 1 | D19: 2 | E19: 1 | G19: 国立市 | H19: 1 | J19: 1 | K19: -
A20: 豊島区 | B20: 2 | D20: 2 | E20: 1 | G20: 福生市 | H20: 1 | J20: 1 | K20: -
A21: 北 区 | B21: 1 | D21: 1 | E21: 1 | G21: 狛江市 | H21: 1 | J21: 1 | K21: -
A22: 荒川区 | B22: 1 | D22: 2 | E22: 1 | G22: 東大和市 | H22: 1 | J22: 1 | K22: -
A23: 板橋区 | B23: 1 | D23: 2 | E23: 2 | G23: 清瀬市 | H23: 1 | I23: 有 | J23: 1 | K23: -
A24: 練馬区 | B24: 5 | D24: 3 | E24: 1 | G24: 東久留米市 | H24: 1 | J24: 1 | K24: -
A25: 足立区 | B25: 1 | D25: 13 | E25: 1 | G25: 武蔵村山市 | H25: 1 | J25: 1 | K25: -
A26: 葛飾区 | B26: 1 | D26: 1 | E26: 2 | G26: 多摩市 | H26: 1 | J26: 7 | K26: -
A27: 江戸川区 | B27: 1 | D27: 2 | E27: 1 | G27: 稲城市 | H27: 1 | J27: 1 | K27: -
G28: 羽村市 | H28: 1 | J28: 1 | K28: -
A29: 2016年4月1日現在 | G29: あきる野市 | H29: 1 | J29: 1 | K29: 1
G30: 西東京市 | H30: 1 | J30: 1 | K30: -
A31: 出所：
A32: 『平成28年度 区市町村における子供家庭支援事業の実施状況』

Sheet 医療機関など（特別区）
A1: 医療機関など（特別区）
B3: 病院数 | C3: 病床数 | D3: 人口1万人当り病床数 | E3: 都指定二次救急医療機関 | F3: 医師数 | G3: 常勤医師数 | H3: 非常勤医師数 | I3: 人口1万人当り医師数 | J3: 診療所数
A4: 千代田区 | B4: 15 | C4: 2,271 | D4: 388.8 | E4: 4 | F4: 730.2 | G4: 649 | H4: 81.2 | I4: 125.02 | J4: 476
A5: 中央区 | B5: 4 | C5: 1,197 | D5: 84.8 | E5: 3 | F5: 714.7 | G5: 569 | H5: 145.7 | I5: 50.62 | J5: 536
A6: 港 区 | B6: 13 | C6: 3,975 | D6: 163.4 | E6: 6 | F6: 1,830.7 | G6: 1,679 | H6: 151.7 | I6: 75.25 | J6: 742
A7: 新宿区 | B7: 15 | C7: 6,204 | D7: 186.0 | E7: 11 | F7: 3,195.2 | G7: 2,819 | H7: 376.2 | I7: 95.79 | J7: 620
A8: 文京区 | B8: 10 | C8: 5,190 | D8: 236.2 | E8: 5 | F8: 3,177.7 | G8: 2,457 | H8: 720.7 | I8: 144.62 | J8: 271
A9: 台東区 | B9: 8 | C9: 1,078 | D9: 54.4 | E9: 2 | F9: 201.8 | G9: 144 | H9: 57.8 | I9: 10.19 | J9: 228
A10: 墨田区 | B10: 14 | C10: 2,466 | D10: 96.2 | E10: 8 | F10: 501.2 | G10: 369 | H10: 132.2 | I10: 19.56 | J10: 225
A11: 江東区 | B11: 17 | C11: 2,872 | D11: 57.7 | E11: 10 | F11: 894.1 | G11: 751 | H11: 143.1 | I11: 17.95 | J11: 399
A12: 品川区 | B12: 16 | C12: 3,185 | D12: 82.3 | E12: 5 | F12: 1,041.0 | G12: 832 | H12: 209.0 | I12: 26.91 | J12: 443
A13: 目黒区 | B13: 9 | C13: 2,421 | D13: 87.2 | E13: 8 | F13: 792.9 | G13: 604 | H13: 188.9 | I13: 28.56 | J13: 320
A14: 大田区 | B14: 28 | C14: 5,026 | D14: 70.1 | E14: 14 | F14: 1,143.8 | G14: 798 | H14: 345.8 | I14: 15.95 | J14: 592
A15: 世田谷区 | B15: 26 | C15: 5,651 | D15: 62.6 | E15: 11 | F15: 1,116.5 | G15: 789 | H15: 327.5 | I15: 12.36 | J15: 872
A16: 渋谷区 | B16: 17 | C16: 3,116 | D16: 138.8 | E16: 5 | F16: 767.3 | G16: 610 | H16: 157.3 | I16: 34.17 | J16: 549
A17: 中野区 | B17: 9 | C17: 1,710 | D17: 52.1 | E17: 5 | F17: 307.7 | G17: 261 | H17: 46.7 | I17: 9.37 | J17: 320
A18: 杉並区 | B18: 20 | C18: 2,720 | D18: 48.2 | E18: 7 | F18: 488.9 | G18: 368 | H18: 120.9 | I18: 8.67 | J18: 491
A19: 豊島区 | B19: 15 | C19: 1,710 | D19: 58.7 | E19: 6 | F19: 275.0 | G19: 153 | H19: 122.0 | I19: 9.44 | J19: 447
A20: 北 区 | B20: 20 | C20: 2,578 | D20: 75.6 | E20: 6 | F20: 405.2 | G20: 297 | H20: 108.2 | I20: 11.88 | J20: 274
A21: 荒川区 | B21: 14 | C21: 1,575 | D21: 74.2 | E21: 5 | F21: 368.4 | G21: 313 | H21: 55.4 | I21: 17.36 | J21: 180
A22: 板橋区 | B22: 42 | C22: 9,875 | D22: 175.7 | E22: 12 | F22: 2,014.9 | G22: 1,622 | H22: 392.9 | I22: 35.86 | J22: 385
A23: 練馬区 | B23: 19 | C23: 3,083 | D23: 42.7 | E23: 7 | F23: 580.0 | G23: 456 | H23: 124.0 | I23: 8.04 | J23: 553
A24: 足立区 | B24: 55 | C24: 6,691 | D24: 99.8 | E24: 14 | F24: 695.5 | G24: 410 | H24: 285.5 | I24: 10.38 | J24: 424
A25: 葛飾区 | B25: 21 | C25: 2,508 | D25: 56.6 | E25: 9 | F25: 466.1 | G25: 361 | H25: 105.1 | I25: 10.52 | J25: 358
A26: 江戸川区 | B26: 22 | C26: 2,930 | D26: 43.0 | E26: 8 | F26: 438.3 | G26: 322 | H26: 116.3 | I26: 6.43 | J26: 424
A27: 区部計 | B27: =SUM(B4:B26) -> 429 | C27: =SUM(C4:C26) -> 80,032 | D27: 86.3 | E27: 171 | F27: 22,147.1 | G27: 17,633 | H27: 4,514.1 | I27: 23.9 | J27: 10,129
A29: 2016年10月1日現在 | F29: 出所：
A30: 都指定二次救急医療機関は2018年6月1日現在 | F30: 東京都福祉保健局 『東京都の医療施設』2016
A31: 人口1万人当りの数値は2015年国勢調査の数字をもとに算出 | F31: 都指定二次救急医療機関は東京都福祉保健局ホームページ
A32: 合計欄は人口1万人当りの値のみ平均値

Sheet 医療機関など（多摩地域）
A1: 医療機関など（多摩地域）
B3: 病院数 | C3: 病床数 | D3: 人口1万人当り病床数 | E3: 都指定二次救急医療機関※ | F3: 医師数 | G3: 常勤医師数 | H3: 非常勤医師数 | I3: 人口1万人当り医師数 | J3: 診療所数
A4: 八王子市 | B4: 39 | C4: 9,016 | D4: 156.1 | E4: 9 | F4: 817.7 | G4: 636 | H4: 181.7 | I4: 14.16 | J4: 377
A5: 立川市 | B5: 7 | C5: 1,633 | D5: 92.6 | E5: 5 | F5: 349.5 | G5: 237 | H5: 112.5 | I5: 19.82 | J5: 159
A6: 武蔵野市 | B6: 9 | C6: 1,168 | D6: 80.7 | E6: 4 | F6: 303.9 | G6: 257 | H6: 46.9 | I6: 21.00 | J6: 209
A7: 三鷹市 | B7: 8 | C7: 2,820 | D7: 150.9 | E7: 3 | F7: 716.2 | G7: 509 | H7: 207.2 | I7: 38.31 | J7: 137
A8: 青梅市 | B8: 16 | C8: 4,588 | D8: 334.0 | E8: 2 | F8: 301.6 | G8: 242 | H8: 59.6 | I8: 21.95 | J8: 89
A9: 府中市 | B9: 15 | C9: 3,637 | D9: 139.7 | E9: 4 | F9: 789.1 | G9: 510 | H9: 279.1 | I9: 30.32 | J9: 179
A10: 昭島市 | B10: 8 | C10: 1,279 | D10: 114.7 | E10: 4 | F10: 135.5 | G10: 90 | H10: 45.5 | I10: 12.15 | J10: 62
A11: 調布市 | B11: 8 | C11: 1,622 | D11: 70.8 | E11: 2 | F11: 127.8 | G11: 88 | H11: 39.8 | I11: 5.58 | J11: 187
A12: 町田市 | B12: 21 | C12: 4,190 | D12: 96.9 | E12: 6 | F12: 357.8 | G12: 233 | H12: 124.8 | I12: 8.28 | J12: 313
A13: 小金井市 | B13: 5 | C13: 1,142 | D13: 94.1 | E13: - | F13: 74.8 | G13: 51 | H13: 23.8 | I13: 6.16 | J13: 87
A14: 小平市 | B14: 9 | C14: 2,331 | D14: 122.7 | E14: 2 | F14: 370.2 | G14: 269 | H14: 101.2 | I14: 19.48 | J14: 126
A15: 日野市 | B15: 6 | C15: 1,084 | D15: 58.2 | E15: 2 | F15: 120.4 | G15: 85 | H15: 35.4 | I15: 6.46 | J15: 124
A16: 東村山市 | B16: 11 | C16: 2,431 | D16: 162.1 | E16: 3 | F16: 216.3 | G16: 143 | H16: 73.3 | I16: 14.42 | J16: 95
A17: 国分寺市 | B17: 2 | C17: 251 | D17: 20.4 | E17: - | F17: 12.7 | G17: 10 | H17: 2.7 | I17: 1.03 | J17: 116
A18: 国立市 | B18: 2 | C18: 66 | D18: 9.0 | E18: - | F18: 17.2 | G18: 9 | H18: 8.2 | I18: 2.34 | J18: 85
A19: 福生市 | B19: 4 | C19: 688 | D19: 117.8 | E19: 3 | F19: 99.1 | G19: 70 | H19: 29.1 | I19: 16.97 | J19: 42
A20: 狛江市 | B20: 2 | C20: 717 | D20: 89.3 | E20: 1 | F20: 204.0 | G20: 199 | H20: 5.0 | I20: 25.42 | J20: 54
A21: 東大和市 | B21: 2 | C21: 412 | D21: 48.4 | E21: 1 | F21: 71.2 | G21: 62 | H21: 9.2 | I21: 8.36 | J21: 51
A22: 清瀬市 | B22: 12 | C22: 2,113 | D22: 282.2 | E22: 2 | F22: 199.0 | G22: 153 | H22: 46.0 | I22: 26.58 | J22: 44
A23: 東久留米市 | B23: 4 | C23: 330 | D23: 28.3 | E23: 2 | F23: 35.8 | G23: 18 | H23: 17.8 | I23: 3.07 | J23: 61
A24: 武蔵村山市 | B24: 4 | C24: 839 | D24: 117.8 | E24: 1 | F24: 85.7 | G24: 64 | H24: 21.7 | I24: 12.03 | J24: 25
A25: 多摩市 | B25: 8 | C25: 2,248 | D25: 153.3 | E25: 2 | F25: 273.3 | G25: 226 | H25: 47.3 | I25: 18.64 | J25: 109
A26: 稲城市 | B26: 3 | C26: 931 | D26: 106.2 | E26: 1 | F26: 98.0 | G26: 75 | H26: 23.0 | I26: 11.18 | J26: 48
A27: 羽村市 | B27: 2 | C27: 246 | D27: 44.1 | E27: - | F27: 13.2 | G27: 6 | H27: 7.2 | I27: 2.36 | J27: 38
A28: あきる野市 | B28: 4 | C28: 583 | D28: 72.0 | E28: 1 | F28: 74.9 | G28: 53 | H28: 21.9 | I28: 9.25 | J28: 44
A29: 西東京市 | B29: 6 | C29: 1,316 | D29: 65.8 | E29: 4 | F29: 157.0 | G29: 103 | H29: 54.0 | I29: 7.85 | J29: 137
A30: 市部計 | B30: =SUM(B4:B29) -> 217 | C30: =SUM(C4:C29) -> 47,681 | D30: 114.7 | E30: 64 | F30: 6,022 | G30: 4,398 | H30: 1,624 | I30: 14.5 | J30: 2,998
A32: 前頁に同じ
A33: ※八王子市は複数医療機関により小児科二次救急医療体制を確保する南多摩医療圏の２病院を含む。

Sheet 福祉予算
A1: 福祉予算
B3: 民生費 | D3: 扶助費 | H3: 民生費 | J3: 扶助費
B4: 決算額（千円） | C4: 構成比（％） | D4: 決算額（千円） | E4: 構成比（％） | H4: 決算額（千円） | I4: 構成比（％） | J4: 決算額（千円） | K4: 構成比（％）
A5: 千代田区 | B5: 16,237,850 | C5: 28.1 | D5: 6,560,630 | E5: 11.4 | G5: 八王子市 | H5: 97,280,532 | I5: 50.2 | J5: 68,377,582 | K5: 35.3
A6: 中央区 | B6: 27,009,298 | C6: 28.2 | D6: 13,420,874 | E6: 14.0 | G6: 立川市 | H6: 36,747,440 | I6: 49.8 | J6: 24,345,169 | K6: 33.0
A7: 港区 | B7: 51,412,682 | C7: 40.0 | D7: 22,765,433 | E7: 17.7 | G7: 武蔵野市 | H7: 25,986,912 | I7: 37.9 | J7: 14,704,652 | K7: 21.5
A8: 新宿区 | B8: 75,461,474 | C8: 54.0 | D8: 46,798,184 | E8: 33.5 | G8: 三鷹市 | H8: 33,214,520 | I8: 48.4 | J8: 19,370,970 | K8: 28.2
A9: 文京区 | B9: 38,803,692 | C9: 46.6 | D9: 18,483,183 | E9: 22.2 | G9: 青梅市 | H9: 24,636,581 | I9: 50.1 | J9: 17,166,410 | K9: 34.9
A10: 台東区 | B10: 53,580,263 | C10: 56.0 | D10: 34,608,511 | E10: 36.2 | G10: 府中市 | H10: 47,402,847 | I10: 44.3 | J10: 28,035,721 | K10: 26.2
A11: 墨田区 | B11: 60,593,830 | C11: 54.0 | D11: 37,225,663 | E11: 33.2 | G11: 昭島市 | H11: 20,760,690 | I11: 48.8 | J11: 14,691,619 | K11: 34.6
A12: 江東区 | B12: 94,390,698 | C12: 50.7 | D12: 60,033,014 | E12: 32.3 | G12: 調布市 | H12: 41,101,672 | I12: 47.9 | J12: 21,979,337 | K12: 25.6
A13: 品川区 | B13: 69,730,784 | C13: 43.8 | D13: 35,462,714 | E13: 22.3 | G13: 町田市 | H13: 73,332,973 | I13: 52.4 | J13: 47,899,576 | K13: 34.2
A14: 目黒区 | B14: 43,079,278 | C14: 48.0 | D14: 22,207,858 | E14: 24.7 | G14: 小金井市 | H14: 17,829,881 | I14: 44.3 | J14: 10,368,735 | K14: 25.8
A15: 大田区 | B15: 139,208,073 | C15: 55.6 | D15: 86,748,841 | E15: 34.7 | G15: 小平市 | H15: 32,737,141 | I15: 53.2 | J15: 19,651,578 | K15: 31.9
A16: 世田谷区 | B16: 146,229,767 | C16: 51.1 | D16: 79,138,657 | E16: 27.6 | G16: 日野市 | H16: 30,349,646 | I16: 45.8 | J16: 17,356,697 | K16: 26.2
A17: 渋谷区 | B17: 41,025,994 | C17: 49.2 | D17: 19,425,201 | E17: 23.3 | G17: 東村山市 | H17: 28,490,812 | I17: 53.9 | J17: 16,878,219 | K17: 31.9
A18: 中野区 | B18: 60,203,512 | C18: 48.9 | D18: 36,485,307 | E18: 29.7 | G18: 国分寺市 | H18: 20,101,327 | I18: 42.9 | J18: 10,977,494 | K18: 23.4
A19: 杉並区 | B19: 98,356,249 | C19: 54.8 | D19: 46,810,812 | E19: 26.1 | G19: 国立市 | H19: 13,990,848 | I19: 47.8 | J19: 8,537,725 | K19: 29.2
A20: 豊島区 | B20: 58,938,389 | C20: 47.0 | D20: 31,774,614 | E20: 25.3 | G20: 福生市 | H20: 11,556,168 | I20: 45.2 | J20: 7,592,999 | K20: 29.7
A21: 北区 | B21: 75,515,934 | C21: 52.8 | D21: 46,307,985 | E21: 32.4 | G21: 狛江市 | H21: 13,898,127 | I21: 51.9 | J21: 7,001,294 | K21: 26.1
A22: 荒川区 | B22: 52,361,318 | C22: 53.8 | D22: 31,019,173 | E22: 31.8 | G22: 東大和市 | H22: 16,884,755 | I22: 51.0 | J22: 11,067,616 | K22: 33.4
A23: 板橋区 | B23: 121,824,174 | C23: 60.8 | D23: 79,413,184 | E23: 39.6 | G23: 清瀬市 | H23: 15,983,538 | I23: 55.4 | J23: 10,503,546 | K23: 36.4
A24: 練馬区 | B24: 142,814,200 | C24: 56.0 | D24: 90,495,970 | E24: 35.5 | G24: 東久留米市 | H24: 20,657,728 | I24: 52.7 | J24: 12,915,605 | K24: 33.0
A25: 足立区 | B25: 157,983,618 | C25: 56.6 | D25: 103,573,389 | E25: 37.1 | G25: 武蔵村山市 | H25: 14,758,188 | I25: 53.2 | J25: 10,598,934 | K25: 38.2
A26: 葛飾区 | B26: 99,483,984 | C26: 53.2 | D26: 65,079,714 | E26: 34.8 | G26: 多摩市 | H26: 25,370,186 | I26: 48.1 | J26: 14,797,477 | K26: 28.1
A27: 江戸川区 | B27: 131,385,490 | C27: 53.6 | D27: 90,862,308 | E27: 37.1 | G27: 稲城市 | H27: 13,723,005 | I27: 40.5 | J27: 9,365,516 | K27: 27.6
G28: 羽村市 | H28: 10,115,080 | I28: 43.5 | J28: 6,596,264 | K28: 28.3
A29: 2016年度決算 | G29: あきる野市 | H29: 12,908,541 | I29: 44.1 | J29: 8,389,241 | K29: 28.7
A30: 出所：2016年度決算カード | G30: 西東京市 | H30: 35,695,561 | I30: 51.9 | J30: 19,693,199 | K30: 28.6

Sheet 介護保険料
A1: 第１号被保険者の基準月額保険料（第7期）
B3: 基準月額保険料（円） | E3: 基準月額保険料（円）
A4: 千代田区 | B4: 5,300 | D4: 八王子市 | E4: 5,408
A5: 中央区 | B5: 5,920 | D5: 立川市 | E5: 5,880
A6: 港区 | B6: 6,245 | D6: 武蔵野市 | E6: 6,240
A7: 新宿区 | B7: 6,200 | D7: 三鷹市 | E7: 5,750
A8: 文京区 | B8: 6,017 | D8: 青梅市 | E8: 5,000
A9: 台東区 | B9: 6,142 | D9: 府中市 | E9: 5,708
A10: 墨田区 | B10: 6,480 | D10: 昭島市 | E10: 6,050
A11: 江東区 | B11: 5,400 | D11: 調布市 | E11: 5,600
A12: 品川区 | B12: 5,600 | D12: 町田市 | E12: 5,450
A13: 目黒区 | B13: 6,240 | D13: 小金井市 | E13: 5,400
A14: 大田区 | B14: 6,000 | D14: 小平市 | E14: 5,300
A15: 世田谷区 | B15: 6,450 | D15: 日野市 | E15: 5,480
A16: 渋谷区 | B16: 5,960 | D16: 東村山市 | E16: 5,750
A17: 中野区 | B17: 5,726 | D17: 国分寺市 | E17: 5,917
A18: 杉並区 | B18: 6,200 | D18: 国立市 | E18: 6,025
A19: 豊島区 | B19: 6,090 | D19: 福生市 | E19: 5,900
A20: 北区 | B20: 6,117 | D20: 狛江市 | E20: 5,950
A21: 荒川区 | B21: 5,980 | D21: 東大和市 | E21: 5,200
A22: 板橋区 | B22: 5,933 | D22: 清瀬市 | E22: 5,825
A23: 練馬区 | B23: 6,470 | D23: 東久留米市 | E23: 5,400
A24: 足立区 | B24: 6,580 | D24: 武蔵村山市 | E24: 5,392
A25: 葛飾区 | B25: 6,400 | D25: 多摩市 | E25: 4,808
A26: 江戸川区 | B26: 5,400 | D26: 稲城市 | E26: 5,200
D27: 羽村市 | E27: 4,800
A28: 第7期(2018～2020)介護保険料 | D28: あきる野市 | E28: 5,200
A29: 出所：東京都2018年3月報道発表資料 | D29: 西東京市 | E29: 6,367

Sheet 地域福祉
A1: 地域福祉
B3: コミュニティカフェ | C3: こども食堂 | J3: コミュニティカフェ | K3: こども食堂
C4: 毎週開催 | D4: 隔週開催 | E4: 月1回開催 | F4: 頻度不明等 | G4: 都補助対象 | K4: 毎週開催 | L4: 隔週開催 | M4: 月1回開催 | N4: 頻度不明等 | O4: 都補助対象
A5: 千代田区 | B5: 1 | F5: 1（週6） | I5: 八王子市 | J5: 12 | M5: 1 | N5: 1（毎日） | O5: 9
A6: 中央区 | B6: 2 | I6: 立川市 | J6: 3
A7: 港区 | B7: 6 | G7: 1 | I7: 武蔵野市 | J7: 5 | L7: 1
A8: 新宿区 | B8: 12 | D8: 2 | E8: 6 | I8: 三鷹市 | J8: 5 | L8: 1 | O8: 1
A9: 文京区 | B9: 3 | C9: 1 | D9: 1 | I9: 青梅市 | J9: 1 | K9: 1 | O9: 1
A10: 台東区 | B10: 3 | E10: 1 | G10: *5 | I10: 府中市 | J10: 2 | O10: 5
A11: 墨田区 | B11: 2 | D11: 1 | I11: 昭島市 | J11: 4 | M11: 1
A12: 江東区 | B12: 3 | D12: 2 | E12: 3 | F12: 1 | I12: 調布市 | J12: 2 | M12: 1
A13: 品川区 | B13: 2 | C13: 1 | D13: 1 | E13: 3 | F13: 1 | I13: 町田市 | J13: 7 | L13: 1 | M13: 2 | O13: 7
A14: 目黒区 | B14: 3 | E14: 3 | G14: 1 | I14: 小金井市 | J14: 2 | M14: 1 | N14: 1 | O14: 2
A15: 大田区 | B15: 3 | C15: 1 | E15: 1 | G15: 1 | I15: 小平市 | J15: 3
A16: 世田谷区 | B16: 22 | D16: 5 | E16: 4 | G16: 8 | I16: 日野市 | O16: 1
A17: 渋谷区 | B17: 8 | E17: 1 | I17: 東村山市 | J17: 1
A18: 中野区 | B18: 1 | E18: 1 | I18: 国分寺市 | J18: 6
A19: 杉並区 | B19: 6 | D19: 1 | E19: 2 | G19: 1 | I19: 国立市 | J19: 1
A20: 豊島区 | B20: 10 | C20: 1 | D20: 3 | E20: 2 | G20: 7 | I20: 福生市
A21: 北区 | B21: 4 | C21: 1 | D21: 3 | E21: 2 | G21: *10 | I21: 狛江市
A22: 荒川区 | C22: 1 | E22: 1 | G22: *11 | I22: 東大和市 | J22: 1 | O22: *2
A23: 板橋区 | B23: 2 | D23: 3 | E23: 2 | F23: 2（毎日、週2） | G23: 6 | I23: 清瀬市 | O23: 10
A24: 練馬区 | B24: 10 | D24: 3 | E24: 1 | G24: 2 | I24: 東久留米市 | J24: 2 | L24: 1 | O24: 1
A25: 足立区 | B25: 1 | D25: 3 | E25: 1 | G25: 2 | I25: 武蔵村山市
A26: 葛飾区 | B26: 1 | E26: 3 | F26: 1（週2） | G26: *3 | I26: 多摩市 | J26: 4 | O26: 5
A27: 江戸川区 | B27: 3 | E27: 1 | G27: *15 | I27: 稲城市 | M27: 1
I28: 羽村市
A29: コミュニティカフェ・こども食堂は調査時現在(2018年12月)の箇所数 | I29: あきる野市
A30: こども食堂の都補助対象件数は2018年度の実績 | I30: 西東京市 | J30: 1 | K30: 1 | M30: 1
A31: *印のついているものは市区町村の補助事業、それ以外のものは都の直接補助事業。
A33: 出所：コミュニティカフェは戦うオヤジの応援団ホームページ
A34: こども食堂の開催件数はこども食堂ネットワークホームページ、東京都補助対象件数は東京都福祉保健局調べ。
A36: こども食堂の開催件数は客観的なデータが入手できないため、こども食堂ネットワークのホームページに掲載されているものに限った。このデータは同ネットワークに加入していて公表を承諾した団体しか掲載されていないと考えられ限界のある数字であると考えられるため、参考のため、東京都の補助事業の対象となった食堂数をあわせて掲載している。
